[Event "Titled Tuesday Blitz June 13 Late 2023"]
[White "Wang, Alexander J"]
[Black "Goncalves, Davi Sulzbacher"]
[WhiteFideId "30955270"]
[BlackFideId "2154510"]
[WhiteElo "2252"]
[BlackElo "2182"]
[Result "0-1"]
[Round "3"]
[TimeControl "180+2"]
[Date "2023.06.13"]
[WhiteClock "0:00:23"]
[BlackClock "0:01:32"]
[Board "173"]

1. e4 {[%clk 0:02:59]}  c6 {[%clk 0:02:57]} 2. d4 {[%clk 0:02:56]}  d6 {[%clk 0:02:58]} 3. Nf3 {[%clk 0:02:50]}  g6 {[%clk 0:02:59]} 4. Nc3 {[%clk 0:02:50]}  Bg7 {[%clk 0:02:59]} 5. Bc4 {[%clk 0:02:50]}  b5 {[%clk 0:02:58]} 6. Bb3 {[%clk 0:02:48]}  a5 {[%clk 0:02:59]} 7. a4 {[%clk 0:02:47]}  b4 {[%clk 0:02:59]} 8. Ne2 {[%clk 0:02:46]}  Ba6 {[%clk 0:02:59]} 9. O-O {[%clk 0:02:46]}  e6 {[%clk 0:02:59]} 10. Re1 {[%clk 0:02:32]}  Ne7 {[%clk 0:02:59]} 11. Bf4 {[%clk 0:02:25]}  O-O {[%clk 0:02:59]} 12. Ng3 {[%clk 0:01:55]}  c5 {[%clk 0:02:49]} 13. dxc5 {[%clk 0:01:39]}  dxc5 {[%clk 0:02:50]} 14. Qxd8 {[%clk 0:01:35]}  Rxd8 {[%clk 0:02:49]} 15. Be5 {[%clk 0:01:30]}  Nbc6 {[%clk 0:02:44]} 16. Bxg7 {[%clk 0:01:02]}  Kxg7 {[%clk 0:02:45]} 17. Rad1 {[%clk 0:01:00]}  c4 {[%clk 0:02:45]} 18. Ba2 {[%clk 0:00:59]}  e5 {[%clk 0:02:23]} 19. Nd2 {[%clk 0:00:50]}  Nd4 {[%clk 0:01:39]} 20. c3 {[%clk 0:00:42]}  b3 {[%clk 0:01:38]} 21. Bb1 {[%clk 0:00:41]}  Ne6 {[%clk 0:01:35]} 22. Nf3 {[%clk 0:00:34]}  f6 {[%clk 0:01:33]} 23. Kf1 {[%clk 0:00:29]}  Nc5 {[%clk 0:01:33]} 24. Rxd8 {[%clk 0:00:24]}  Rxd8 {[%clk 0:01:32]} 25. Ke2 {[%clk 0:00:23]}  Nxa4 {[%clk 0:01:32]} 0-1


[Site "https://www.chess.com"]

[Event "Titled Tuesday Blitz June 13 Late 2023"]
[White "Rangel, Daniel"]
[Black "Krasteva, Beloslava"]
[WhiteFideId "2124475"]
[BlackFideId "2922029"]
[WhiteElo "2231"]
[BlackElo "2187"]
[Result "0-1"]
[Round "3"]
[TimeControl "180+2"]
[Date "2023.06.13"]
[WhiteClock "0:00:23"]
[BlackClock "0:00:36"]
[Board "174"]

1. d4 {[%clk 0:02:59]}  Nf6 {[%clk 0:02:58]} 2. c4 {[%clk 0:03:00]}  e6 {[%clk 0:02:58]} 3. Nc3 {[%clk 0:03:00]}  h6 {[%clk 0:02:56]} 4. e3 {[%clk 0:03:01]}  Bb4 {[%clk 0:02:53]} 5. Bd3 {[%clk 0:03:01]}  O-O {[%clk 0:02:52]} 6. Ne2 {[%clk 0:03:00]}  d5 {[%clk 0:02:51]} 7. a3 {[%clk 0:02:59]}  Be7 {[%clk 0:02:44]} 8. cxd5 {[%clk 0:02:57]}  exd5 {[%clk 0:02:44]} 9. Nf4 {[%clk 0:02:57]}  b6 {[%clk 0:02:32]} 10. Qc2 {[%clk 0:02:47]}  Bb7 {[%clk 0:02:29]} 11. g4 {[%clk 0:02:44]}  c5 {[%clk 0:02:20]} 12. Rg1 {[%clk 0:02:30]}  Re8 {[%clk 0:02:09]} 13. h4 {[%clk 0:02:29]}  cxd4 {[%clk 0:02:05]} 14. exd4 {[%clk 0:02:26]}  Ne4 {[%clk 0:01:50]} 15. Kf1 {[%clk 0:01:12]}  Bxh4 {[%clk 0:01:46]} 16. Be3 {[%clk 0:01:12]}  Nd7 {[%clk 0:01:14]} 17. Ncxd5 {[%clk 0:01:07]}  Rc8 {[%clk 0:01:09]} 18. Qb1 {[%clk 0:01:07]}  Ndf6 {[%clk 0:00:53]} 19. Nxf6+ {[%clk 0:01:03]}  Qxf6 {[%clk 0:00:49]} 20. Kg2 {[%clk 0:00:40]}  Nd2+ {[%clk 0:00:42]} 21. Kh3 {[%clk 0:00:37]}  Nxb1 {[%clk 0:00:41]} 22. Raxb1 {[%clk 0:00:35]}  Bxf2 {[%clk 0:00:40]} 23. Bxf2 {[%clk 0:00:23]}  Qxf4 {[%clk 0:00:36]} 24. Rg3 {[%clk 0:00:23]} 0-1


[Site "https://www.chess.com"]

[Event "Titled Tuesday Blitz June 13 Late 2023"]
[White "Abduzhaparov"]
[Black "SicilianPanzer"]
[WhiteElo "2407"]
[BlackElo "2234"]
[Result "0-1"]
[Round "3"]
[TimeControl "180+2"]
[Date "2023.06.13"]
[WhiteClock "0:00:00"]
[BlackClock "0:00:05"]
[Board "175"]

1. Nf3 {[%clk 0:02:56]}  Nf6 {[%clk 0:02:58]} 2. c4 {[%clk 0:02:57]}  e6 {[%clk 0:02:58]} 3. g3 {[%clk 0:02:56]}  a6 {[%clk 0:02:57]} 4. Bg2 {[%clk 0:02:57]}  b5 {[%clk 0:02:57]} 5. b3 {[%clk 0:02:54]}  Bb7 {[%clk 0:02:55]} 6. O-O {[%clk 0:02:54]}  c5 {[%clk 0:02:54]} 7. Bb2 {[%clk 0:02:54]}  Be7 {[%clk 0:02:53]} 8. d4 {[%clk 0:02:52]}  Qb6 {[%clk 0:02:45]} 9. Nbd2 {[%clk 0:02:47]}  O-O {[%clk 0:02:32]} 10. Qc2 {[%clk 0:02:42]}  d5 {[%clk 0:02:08]} 11. dxc5 {[%clk 0:02:23]}  Bxc5 {[%clk 0:02:04]} 12. Ng5 {[%clk 0:02:17]}  Bd4 {[%clk 0:01:50]} 13. Bxd4 {[%clk 0:01:50]}  Qxd4 {[%clk 0:01:50]} 14. cxd5 {[%clk 0:01:41]}  Bxd5 {[%clk 0:01:46]} 15. Ndf3 {[%clk 0:01:37]}  Qb6 {[%clk 0:01:43]} 16. e4 {[%clk 0:01:33]}  Qc6 {[%clk 0:01:10]} 17. Qb1 {[%clk 0:01:07]}  Nxe4 {[%clk 0:01:06]} 18. Ne5 {[%clk 0:00:58]}  Qd6 {[%clk 0:00:29]} 19. Bxe4 {[%clk 0:00:57]}  Qxe5 {[%clk 0:00:27]} 20. Bxh7+ {[%clk 0:00:51]}  Kh8 {[%clk 0:00:26]} 21. Bg8 {[%clk 0:00:49]}  Be4 {[%clk 0:00:16]} 22. Qxe4 {[%clk 0:00:35]}  Qxe4 {[%clk 0:00:14]} 23. Nxe4 {[%clk 0:00:36]}  Kxg8 {[%clk 0:00:14]} 24. Rac1 {[%clk 0:00:35]}  Nd7 {[%clk 0:00:12]} 25. Rfd1 {[%clk 0:00:35]}  Ne5 {[%clk 0:00:02]} 26. f4 {[%clk 0:00:32]}  Ng4 {[%clk 0:00:02]} 27. h3 {[%clk 0:00:29]}  Ne3 {[%clk 0:00:01]} 28. Rd6 {[%clk 0:00:23]}  Rac8 {[%clk 0:00:01]} 29. Rcc6 {[%clk 0:00:22]}  Rxc6 {[%clk 0:00:01]} 30. Rxc6 {[%clk 0:00:23]}  a5 {[%clk 0:00:01]} 31. Ra6 {[%clk 0:00:20]}  Rc8 {[%clk 0:00:01]} 32. Kf2 {[%clk 0:00:18]}  Nd5 {[%clk 0:00:01]} 33. Ng5 {[%clk 0:00:16]}  Rc2+ {[%clk 0:00:02]} 34. Kf3 {[%clk 0:00:15]}  g6 {[%clk 0:00:03]} 35. Ra8+ {[%clk 0:00:14]}  Kg7 {[%clk 0:00:03]} 36. Ra7 {[%clk 0:00:15]}  Rc3+ {[%clk 0:00:04]} 37. Kf2 {[%clk 0:00:14]}  Rc2+ {[%clk 0:00:04]} 38. Ke1 {[%clk 0:00:12]}  Rxa2 {[%clk 0:00:04]} 39. Rxf7+ {[%clk 0:00:11]}  Kg8 {[%clk 0:00:05]} 40. Rb7 {[%clk 0:00:11]}  Nc3 {[%clk 0:00:03]} 41. Nxe6 {[%clk 0:00:08]}  Rb2 {[%clk 0:00:03]} 42. Ng5 {[%clk 0:00:03]}  Rxb3 {[%clk 0:00:02]} 43. f5 {[%clk 0:00:04]}  gxf5 {[%clk 0:00:02]} 44. h4 {[%clk 0:00:04]}  Ne4 {[%clk 0:00:01]} 45. Ne6 {[%clk 0:00:03]}  Re3+ {[%clk 0:00:01]} 46. Kd1 {[%clk 0:00:03]}  Nc3+ {[%clk 0:00:01]} 47. Kd2 {[%clk 0:00:03]}  Rxe6 {[%clk 0:00:02]} 48. Kxc3 {[%clk 0:00:03]}  Re5 {[%clk 0:00:03]} 49. Ra7 {[%clk 0:00:03]}  b4+ {[%clk 0:00:03]} 50. Kb3 {[%clk 0:00:02]}  Re3+ {[%clk 0:00:03]} 51. Ka4 {[%clk 0:00:02]}  Ra3+ {[%clk 0:00:04]} 52. Kb5 {[%clk 0:00:02]}  Rxg3 {[%clk 0:00:04]} 53. Rxa5 {[%clk 0:00:00]}  Rg4 {[%clk 0:00:05]} 0-1


[Site "https://www.chess.com"]

[Event "Titled Tuesday Blitz June 13 Late 2023"]
[White "SalihEke"]
[Black "Sivakumar, Shaaketh"]
[BlackFideId "30940176"]
[WhiteElo "2233"]
[BlackElo "2174"]
[Result "1-0"]
[Round "3"]
[TimeControl "180+2"]
[Date "2023.06.13"]
[WhiteClock "0:01:05"]
[BlackClock "0:00:09"]
[Board "176"]

1. e4 {[%clk 0:03:00]}  e6 {[%clk 0:03:00]} 2. d3 {[%clk 0:03:00]}  d5 {[%clk 0:02:59]} 3. Nc3 {[%clk 0:03:00]}  c5 {[%clk 0:03:00]} 4. Nf3 {[%clk 0:03:00]}  d4 {[%clk 0:03:00]} 5. Ne2 {[%clk 0:03:01]}  g6 {[%clk 0:03:00]} 6. g3 {[%clk 0:03:00]}  Nc6 {[%clk 0:03:00]} 7. Bg2 {[%clk 0:03:01]}  Bg7 {[%clk 0:03:01]} 8. O-O {[%clk 0:03:02]}  Nge7 {[%clk 0:03:01]} 9. Nd2 {[%clk 0:03:02]}  O-O {[%clk 0:03:02]} 10. a4 {[%clk 0:03:02]}  Rb8 {[%clk 0:03:01]} 11. Nc4 {[%clk 0:03:02]}  a6 {[%clk 0:03:01]} 12. a5 {[%clk 0:03:03]}  Ne5 {[%clk 0:02:55]} 13. Nxe5 {[%clk 0:02:57]}  Bxe5 {[%clk 0:02:56]} 14. Bh6 {[%clk 0:02:57]}  Re8 {[%clk 0:02:55]} 15. f4 {[%clk 0:02:57]}  Bh8 {[%clk 0:02:55]} 16. Qd2 {[%clk 0:02:56]}  Nc6 {[%clk 0:02:54]} 17. g4 {[%clk 0:02:54]}  Bd7 {[%clk 0:02:38]} 18. h3 {[%clk 0:02:41]}  Qe7 {[%clk 0:02:37]} 19. Ng3 {[%clk 0:02:41]}  Rbd8 {[%clk 0:02:36]} 20. Bg5 {[%clk 0:02:40]}  f6 {[%clk 0:02:36]} 21. Bh4 {[%clk 0:02:40]}  h6 {[%clk 0:02:34]} 22. g5 {[%clk 0:02:30]}  f5 {[%clk 0:02:33]} 23. e5 {[%clk 0:02:27]}  h5 {[%clk 0:02:31]} 24. Qe2 {[%clk 0:02:21]}  Nb4 {[%clk 0:02:27]} 25. c3 {[%clk 0:02:19]}  dxc3 {[%clk 0:02:26]} 26. bxc3 {[%clk 0:02:20]}  Nd5 {[%clk 0:02:22]} 27. Bxd5 {[%clk 0:02:17]}  exd5 {[%clk 0:02:23]} 28. d4 {[%clk 0:02:18]}  Bb5 {[%clk 0:02:22]} 29. Qf3 {[%clk 0:02:13]}  Bxf1 {[%clk 0:02:23]} 30. Rxf1 {[%clk 0:02:13]}  cxd4 {[%clk 0:02:24]} 31. cxd4 {[%clk 0:02:13]}  Qb4 {[%clk 0:02:24]} 32. Rd1 {[%clk 0:02:10]}  Rc8 {[%clk 0:02:16]} 33. Nxf5 {[%clk 0:02:07]}  gxf5 {[%clk 0:02:12]} 34. Qxd5+ {[%clk 0:01:54]}  Kf8 {[%clk 0:02:12]} 35. g6 {[%clk 0:01:54]}  Rc7 {[%clk 0:02:07]} 36. Bf6 {[%clk 0:01:41]}  Bxf6 {[%clk 0:02:03]} 37. exf6 {[%clk 0:01:42]}  Re1+ {[%clk 0:02:04]} 38. Kf2 {[%clk 0:01:40]}  Rc2+ {[%clk 0:02:00]} 39. Kg3 {[%clk 0:01:37]}  Re3+ {[%clk 0:00:25]} 40. Kh4 {[%clk 0:01:35]}  Rxh3+ {[%clk 0:00:25]} 41. Kxh3 {[%clk 0:01:07]}  Qb3+ {[%clk 0:00:09]} 42. Qxb3 {[%clk 0:01:05]} 1-0


[Site "https://www.chess.com"]

[Event "Titled Tuesday Blitz June 13 Late 2023"]
[White "Martinez, Ayelen"]
[Black "Mazurkiewicz, Michal"]
[WhiteFideId "118702"]
[BlackFideId "1124943"]
[WhiteElo "2074"]
[BlackElo "2063"]
[Result "1-0"]
[Round "3"]
[TimeControl "180+2"]
[Date "2023.06.13"]
[WhiteClock "0:00:28"]
[BlackClock "0:00:00"]
[Board "177"]

1. e4 {[%clk 0:03:00]}  d6 {[%clk 0:02:59]} 2. d4 {[%clk 0:02:59]}  Nf6 {[%clk 0:03:00]} 3. Nc3 {[%clk 0:03:00]}  c6 {[%clk 0:03:00]} 4. Nf3 {[%clk 0:03:00]}  Bg4 {[%clk 0:03:00]} 5. Be2 {[%clk 0:02:59]}  e6 {[%clk 0:03:00]} 6. h3 {[%clk 0:02:59]}  Bh5 {[%clk 0:03:01]} 7. Bg5 {[%clk 0:02:58]}  Be7 {[%clk 0:03:00]} 8. Qd2 {[%clk 0:02:58]}  d5 {[%clk 0:03:00]} 9. e5 {[%clk 0:02:57]}  Nfd7 {[%clk 0:03:01]} 10. O-O-O {[%clk 0:02:51]}  a6 {[%clk 0:02:37]} 11. g4 {[%clk 0:02:45]}  Bg6 {[%clk 0:02:37]} 12. h4 {[%clk 0:02:44]}  h5 {[%clk 0:02:22]} 13. Bxe7 {[%clk 0:02:41]}  Qxe7 {[%clk 0:02:22]} 14. gxh5 {[%clk 0:02:30]}  Bxh5 {[%clk 0:02:23]} 15. Ng5 {[%clk 0:02:29]}  c5 {[%clk 0:02:13]} 16. Bxh5 {[%clk 0:02:18]}  Rxh5 {[%clk 0:02:14]} 17. Qe2 {[%clk 0:02:18]}  Rh6 {[%clk 0:02:14]} 18. dxc5 {[%clk 0:02:04]}  Nc6 {[%clk 0:02:07]} 19. f4 {[%clk 0:01:56]}  Qxc5 {[%clk 0:01:36]} 20. Nxd5 {[%clk 0:01:21]}  exd5 {[%clk 0:01:30]} 21. e6 {[%clk 0:01:22]}  fxe6 {[%clk 0:01:19]} 22. Nxe6 {[%clk 0:01:23]}  Qe7 {[%clk 0:00:46]} 23. Nc7+ {[%clk 0:01:20]}  Kd8 {[%clk 0:00:47]} 24. Qxe7+ {[%clk 0:01:16]}  Nxe7 {[%clk 0:00:48]} 25. Nxa8 {[%clk 0:01:16]}  Rc6 {[%clk 0:00:29]} 26. h5 {[%clk 0:00:59]}  Rd6 {[%clk 0:00:06]} 27. Rhe1 {[%clk 0:00:55]}  Nf5 {[%clk 0:00:02]} 28. Rd3 {[%clk 0:00:48]}  Nf6 {[%clk 0:00:03]} 29. Rc3 {[%clk 0:00:40]}  Ne4 {[%clk 0:00:03]} 30. Rb3 {[%clk 0:00:36]}  Kc8 {[%clk 0:00:03]} 31. Nb6+ {[%clk 0:00:35]}  Kc7 {[%clk 0:00:03]} 32. Na4 {[%clk 0:00:34]}  Nd4 {[%clk 0:00:04]} 33. Ra3 {[%clk 0:00:31]}  Rg6 {[%clk 0:00:02]} 34. Nc3 {[%clk 0:00:30]}  Rg2 {[%clk 0:00:01]} 35. Nxd5+ {[%clk 0:00:28]}  Kd6 {[%clk 0:00:00]} 36. Ne3 {[%clk 0:00:28]} 1-0


[Site "https://www.chess.com"]

[Event "Titled Tuesday Blitz June 13 Late 2023"]
[White "Chemin, Justo Reinaldo"]
[Black "Ochkoos, Jura"]
[WhiteFideId "2101580"]
[BlackFideId "2601214"]
[WhiteElo "1940"]
[BlackElo "2139"]
[Result "1-0"]
[Round "3"]
[TimeControl "180+2"]
[Date "2023.06.13"]
[WhiteClock "0:00:08"]
[BlackClock "0:00:53"]
[Board "179"]

1. d4 {[%clk 0:03:00]}  d5 {[%clk 0:02:59]} 2. Nf3 {[%clk 0:03:00]}  e6 {[%clk 0:02:59]} 3. b3 {[%clk 0:03:00]}  Nf6 {[%clk 0:03:00]} 4. Bb2 {[%clk 0:03:00]}  a5 {[%clk 0:03:01]} 5. e3 {[%clk 0:02:56]}  a4 {[%clk 0:03:01]} 6. Bd3 {[%clk 0:02:50]}  a3 {[%clk 0:03:00]} 7. Bc1 {[%clk 0:02:46]}  c6 {[%clk 0:02:47]} 8. O-O {[%clk 0:02:34]}  b6 {[%clk 0:02:44]} 9. c4 {[%clk 0:02:33]}  Bb4 {[%clk 0:02:43]} 10. Bd2 {[%clk 0:02:31]}  c5 {[%clk 0:02:40]} 11. Bxb4 {[%clk 0:02:28]}  cxb4 {[%clk 0:02:40]} 12. Nbd2 {[%clk 0:02:25]}  O-O {[%clk 0:02:39]} 13. Rc1 {[%clk 0:02:21]}  Bb7 {[%clk 0:02:38]} 14. Qe2 {[%clk 0:02:19]}  Nbd7 {[%clk 0:02:24]} 15. Rfe1 {[%clk 0:02:15]}  h6 {[%clk 0:02:22]} 16. e4 {[%clk 0:02:07]}  dxe4 {[%clk 0:02:21]} 17. Nxe4 {[%clk 0:02:08]}  Nxe4 {[%clk 0:02:17]} 18. Bxe4 {[%clk 0:02:07]}  Bxe4 {[%clk 0:02:18]} 19. Qxe4 {[%clk 0:02:07]}  Nf6 {[%clk 0:02:18]} 20. Qc6 {[%clk 0:01:56]}  Rc8 {[%clk 0:02:00]} 21. Qb5 {[%clk 0:01:53]}  Qd6 {[%clk 0:02:00]} 22. c5 {[%clk 0:01:40]}  bxc5 {[%clk 0:02:00]} 23. dxc5 {[%clk 0:01:40]}  Qb8 {[%clk 0:02:00]} 24. Qxb8 {[%clk 0:01:35]}  Rxb8 {[%clk 0:02:00]} 25. c6 {[%clk 0:01:33]}  Nd5 {[%clk 0:01:58]} 26. Ne5 {[%clk 0:01:31]}  Rbc8 {[%clk 0:01:54]} 27. Rc4 {[%clk 0:01:26]}  Rc7 {[%clk 0:01:54]} 28. Rec1 {[%clk 0:01:20]}  Rfc8 {[%clk 0:01:51]} 29. Kf1 {[%clk 0:01:08]}  Kf8 {[%clk 0:01:40]} 30. Nd3 {[%clk 0:01:03]}  Rb8 {[%clk 0:01:36]} 31. Nc5 {[%clk 0:00:56]}  Ke7 {[%clk 0:01:31]} 32. Na6 {[%clk 0:00:55]}  Rbc8 {[%clk 0:01:32]} 33. Nxc7 {[%clk 0:00:55]}  Rxc7 {[%clk 0:01:33]} 34. g3 {[%clk 0:00:47]}  Kd6 {[%clk 0:01:32]} 35. Ke2 {[%clk 0:00:47]}  h5 {[%clk 0:01:31]} 36. Kd3 {[%clk 0:00:45]}  g6 {[%clk 0:01:27]} 37. h4 {[%clk 0:00:43]}  Ke5 {[%clk 0:01:24]} 38. Rc5 {[%clk 0:00:38]}  Kd6 {[%clk 0:01:24]} 39. f4 {[%clk 0:00:31]}  Ne7 {[%clk 0:01:16]} 40. Rb5 {[%clk 0:00:17]}  Nd5 {[%clk 0:01:16]} 41. Rb7 {[%clk 0:00:12]}  Ne7 {[%clk 0:01:09]} 42. Rxc7 {[%clk 0:00:12]}  Kxc7 {[%clk 0:01:07]} 43. Kc4 {[%clk 0:00:11]}  Nd5 {[%clk 0:01:02]} 44. Rd1 {[%clk 0:00:10]}  Kxc6 {[%clk 0:01:02]} 45. Rxd5 {[%clk 0:00:09]}  exd5+ {[%clk 0:01:01]} 46. Kxb4 {[%clk 0:00:10]}  f6 {[%clk 0:00:56]} 47. Kxa3 {[%clk 0:00:10]}  Kc5 {[%clk 0:00:57]} 48. Kb2 {[%clk 0:00:10]}  Kd4 {[%clk 0:00:57]} 49. Kc2 {[%clk 0:00:10]}  Ke3 {[%clk 0:00:57]} 50. Kd1 {[%clk 0:00:10]}  Kf3 {[%clk 0:00:55]} 51. a4 {[%clk 0:00:10]}  Kxg3 {[%clk 0:00:56]} 52. a5 {[%clk 0:00:10]}  g5 {[%clk 0:00:57]} 53. a6 {[%clk 0:00:11]}  gxf4 {[%clk 0:00:57]} 54. a7 {[%clk 0:00:11]}  f3 {[%clk 0:00:57]} 55. a8=Q {[%clk 0:00:11]}  f2 {[%clk 0:00:57]} 56. Ke2 {[%clk 0:00:09]}  f1=Q+ {[%clk 0:00:53]} 57. Kxf1 {[%clk 0:00:08]} 1-0


[Site "https://www.chess.com"]

[Event "Titled Tuesday Blitz June 13 Late 2023"]
[White "Pesotskiy, Mikhail"]
[Black "Novikova, Margarita"]
[WhiteFideId "34164453"]
[BlackFideId "14109689"]
[WhiteElo "2131"]
[BlackElo "2013"]
[Result "1-0"]
[Round "3"]
[TimeControl "180+2"]
[Date "2023.06.13"]
[WhiteClock "0:00:23"]
[BlackClock "0:00:20"]
[Board "182"]

1. d4 {[%clk 0:02:47]}  e5 {[%clk 0:02:55]} 2. dxe5 {[%clk 0:02:46]}  Nc6 {[%clk 0:02:55]} 3. Nf3 {[%clk 0:02:45]}  Qe7 {[%clk 0:02:55]} 4. Nbd2 {[%clk 0:02:45]}  Nxe5 {[%clk 0:02:55]} 5. Nxe5 {[%clk 0:02:46]}  Qxe5 {[%clk 0:02:55]} 6. Nf3 {[%clk 0:02:47]}  Qd6 {[%clk 0:02:52]} 7. Bd2 {[%clk 0:02:38]}  Nf6 {[%clk 0:02:51]} 8. e3 {[%clk 0:02:38]}  Ne4 {[%clk 0:02:46]} 9. Bd3 {[%clk 0:02:31]}  Nxd2 {[%clk 0:02:46]} 10. Qxd2 {[%clk 0:02:32]}  Qb4 {[%clk 0:02:45]} 11. c3 {[%clk 0:02:19]}  Qa5 {[%clk 0:02:44]} 12. O-O {[%clk 0:02:19]}  Be7 {[%clk 0:02:39]} 13. e4 {[%clk 0:02:16]}  d6 {[%clk 0:02:38]} 14. Rfe1 {[%clk 0:02:09]}  Bg4 {[%clk 0:02:35]} 15. Qf4 {[%clk 0:02:09]}  Bxf3 {[%clk 0:02:33]} 16. Qxf3 {[%clk 0:02:10]}  Qe5 {[%clk 0:02:27]} 17. Qg3 {[%clk 0:02:01]}  Qxg3 {[%clk 0:02:26]} 18. hxg3 {[%clk 0:02:02]}  Bf6 {[%clk 0:02:23]} 19. f4 {[%clk 0:02:01]}  O-O-O {[%clk 0:02:22]} 20. Bc4 {[%clk 0:02:00]}  Rhf8 {[%clk 0:02:20]} 21. g4 {[%clk 0:01:50]}  Bh4 {[%clk 0:02:16]} 22. Re3 {[%clk 0:01:50]}  h6 {[%clk 0:02:08]} 23. g3 {[%clk 0:01:49]}  Be7 {[%clk 0:02:04]} 24. Kg2 {[%clk 0:01:48]}  c6 {[%clk 0:01:57]} 25. Rd1 {[%clk 0:01:47]}  Kc7 {[%clk 0:01:53]} 26. a4 {[%clk 0:01:46]}  a5 {[%clk 0:01:51]} 27. Kf3 {[%clk 0:01:44]}  Rb8 {[%clk 0:01:37]} 28. Be2 {[%clk 0:01:39]}  b5 {[%clk 0:01:34]} 29. axb5 {[%clk 0:01:39]}  cxb5 {[%clk 0:01:33]} 30. Rd5 {[%clk 0:01:39]}  Kc6 {[%clk 0:01:29]} 31. c4 {[%clk 0:01:20]}  bxc4 {[%clk 0:01:05]} 32. Bxc4 {[%clk 0:01:21]}  Bd8 {[%clk 0:00:59]} 33. b3 {[%clk 0:01:13]}  Bc7 {[%clk 0:00:56]} 34. Rc3 {[%clk 0:01:08]}  Kd7 {[%clk 0:00:52]} 35. Bb5+ {[%clk 0:01:03]}  Kd8 {[%clk 0:00:49]} 36. Rc6 {[%clk 0:00:50]}  Rb6 {[%clk 0:00:42]} 37. Rdxd6+ {[%clk 0:00:37]}  Bxd6 {[%clk 0:00:37]} 38. Rxb6 {[%clk 0:00:38]}  Kc7 {[%clk 0:00:37]} 39. Rc6+ {[%clk 0:00:38]}  Kd7 {[%clk 0:00:35]} 40. Ra6+ {[%clk 0:00:32]}  Ke7 {[%clk 0:00:32]} 41. Ra7+ {[%clk 0:00:28]}  Ke6 {[%clk 0:00:23]} 42. Bc4+ {[%clk 0:00:24]}  Kf6 {[%clk 0:00:23]} 43. e5+ {[%clk 0:00:24]}  Bxe5 {[%clk 0:00:24]} 44. fxe5+ {[%clk 0:00:25]}  Kxe5 {[%clk 0:00:25]} 45. Rxa5+ {[%clk 0:00:26]}  Kd4 {[%clk 0:00:24]} 46. Ra7 {[%clk 0:00:23]}  f5 {[%clk 0:00:23]} 47. Rxg7 {[%clk 0:00:23]}  fxg4+ {[%clk 0:00:20]} 48. Kxg4 {[%clk 0:00:23]} 1-0


[Site "https://www.chess.com"]

[Event "Titled Tuesday Blitz June 13 Late 2023"]
[White "Ozalp, Burak"]
[Black "Fuentes Godoy, Lilia Ivonne"]
[WhiteFideId "6314210"]
[BlackFideId "5104130"]
[WhiteElo "2106"]
[BlackElo "2024"]
[Result "1-0"]
[Round "3"]
[TimeControl "180+2"]
[Date "2023.06.13"]
[WhiteClock "0:00:19"]
[BlackClock "0:00:00"]
[Board "183"]

1. Nf3 {[%clk 0:03:00]}  d5 {[%clk 0:02:59]} 2. e3 {[%clk 0:02:59]}  c6 {[%clk 0:02:55]} 3. b3 {[%clk 0:02:57]}  Nf6 {[%clk 0:02:55]} 4. Bb2 {[%clk 0:02:58]}  Bf5 {[%clk 0:02:54]} 5. c4 {[%clk 0:02:58]}  e6 {[%clk 0:02:54]} 6. Be2 {[%clk 0:02:56]}  Nbd7 {[%clk 0:02:54]} 7. O-O {[%clk 0:02:57]}  Be7 {[%clk 0:02:55]} 8. d3 {[%clk 0:02:56]}  O-O {[%clk 0:02:53]} 9. Nh4 {[%clk 0:02:55]}  Bg6 {[%clk 0:02:53]} 10. Nd2 {[%clk 0:02:52]}  e5 {[%clk 0:02:52]} 11. Nxg6 {[%clk 0:02:50]}  hxg6 {[%clk 0:02:51]} 12. cxd5 {[%clk 0:02:51]}  cxd5 {[%clk 0:02:51]} 13. Rc1 {[%clk 0:02:52]}  Bd6 {[%clk 0:02:45]} 14. a3 {[%clk 0:02:44]}  Qe7 {[%clk 0:02:44]} 15. b4 {[%clk 0:02:44]}  Rfc8 {[%clk 0:02:44]} 16. Qb3 {[%clk 0:02:43]}  b5 {[%clk 0:02:10]} 17. Qa2 {[%clk 0:02:28]}  Nb6 {[%clk 0:02:05]} 18. Nb3 {[%clk 0:02:24]}  Na4 {[%clk 0:02:02]} 19. Na5 {[%clk 0:02:22]}  Qd7 {[%clk 0:01:51]} 20. Ba1 {[%clk 0:02:19]}  Rxc1 {[%clk 0:01:16]} 21. Rxc1 {[%clk 0:02:19]}  Rc8 {[%clk 0:01:17]} 22. Qb1 {[%clk 0:02:19]}  a6 {[%clk 0:00:30]} 23. Rc2 {[%clk 0:02:18]}  Nb6 {[%clk 0:00:28]} 24. Qc1 {[%clk 0:02:15]}  Rc7 {[%clk 0:00:25]} 25. h3 {[%clk 0:02:10]}  Qc8 {[%clk 0:00:22]} 26. Rxc7 {[%clk 0:02:09]}  Qxc7 {[%clk 0:00:23]} 27. Qxc7 {[%clk 0:02:09]}  Bxc7 {[%clk 0:00:23]} 28. Nb3 {[%clk 0:02:03]}  Nfd7 {[%clk 0:00:23]} 29. e4 {[%clk 0:01:52]}  d4 {[%clk 0:00:22]} 30. Bg4 {[%clk 0:01:52]}  Kf8 {[%clk 0:00:22]} 31. Bb2 {[%clk 0:01:29]}  Ke7 {[%clk 0:00:22]} 32. Bc1 {[%clk 0:01:27]}  f6 {[%clk 0:00:22]} 33. g3 {[%clk 0:01:26]}  Na4 {[%clk 0:00:21]} 34. Kf1 {[%clk 0:01:20]}  Nf8 {[%clk 0:00:14]} 35. h4 {[%clk 0:01:20]}  Ne6 {[%clk 0:00:14]} 36. Ke1 {[%clk 0:01:07]}  Bd6 {[%clk 0:00:12]} 37. h5 {[%clk 0:01:07]}  gxh5 {[%clk 0:00:12]} 38. Bxh5 {[%clk 0:01:07]}  Nf8 {[%clk 0:00:12]} 39. f4 {[%clk 0:01:03]}  g6 {[%clk 0:00:12]} 40. Bg4 {[%clk 0:01:01]}  Ne6 {[%clk 0:00:11]} 41. f5 {[%clk 0:00:47]}  gxf5 {[%clk 0:00:10]} 42. Bxf5 {[%clk 0:00:48]}  Ng7 {[%clk 0:00:10]} 43. Bc8 {[%clk 0:00:47]}  a5 {[%clk 0:00:07]} 44. bxa5 {[%clk 0:00:46]}  b4 {[%clk 0:00:06]} 45. a6 {[%clk 0:00:40]}  Nb6 {[%clk 0:00:02]} 46. a7 {[%clk 0:00:35]}  bxa3 {[%clk 0:00:03]} 47. Bb7 {[%clk 0:00:27]}  a2 {[%clk 0:00:03]} 48. Bd2 {[%clk 0:00:20]}  Ba3 {[%clk 0:00:02]} 49. Ba5 {[%clk 0:00:19]}  Na8 {[%clk 0:00:02]} 50. Bxa8 {[%clk 0:00:19]}  Bb2 {[%clk 0:00:00]} 51. Bd5 {[%clk 0:00:19]} 1-0


[Site "https://www.chess.com"]